Cogmind - Beta 15 @@@ ROGUE MODE // 2025.05.06 @ 23:18:47 Player: XDRM Result: Destroyed by D-53 Grenadier with Mini Grenade Launcher Performance ------------- Evolutions (1) 500 Regions Visited (3) 600 Robots Destroyed (14) 70 Value Destroyed (289) 289 Prototype IDs (0) 0 Alien Tech Used (0) 0 Bonus (-14) -14 TOTAL SCORE: 1445 Bonus ------- Friendly Fire -14 Cogmind --------- Core Integrity 0/400 Matter 252/300 Energy 100/100 System Corruption 0% Temperature Cool (2) Movement Flying (40) Location -9/Mines Parts ------- > --- POWER (1) -------- (None) > --- PROPULSION (2) --- Flight Unit Flight Unit > --- UTILITY (4) ------ (None) > --- WEAPON (2) ------- (None) > --- INVENTORY (5) ---- Wheel Flight Unit Peak State ------------ > --- POWER ------------ Ion Engine > --- PROPULSION ------- Wheel Compact Wheel > --- UTILITY ---------- Small Storage Unit Seismic Detector > --- WEAPON ----------- EM Pulse Gun EM Pulse Gun > --- INVENTORY -------- Ion Engine EM Pulse Gun [Rating: 7] Favorites ----------- Power Ion Engine Engine Ion Engine Propulsion Wheel Wheel Wheel Flight Unit Flight Unit Utility Small Storage Unit Device Seismic Detector Storage Small Storage Unit Weapon EM Pulse Gun Energy Gun EM Pulse Gun Energy Cannon Particle Cannon Launcher Grenade Launcher Slashing Weapon Mining Claw Build | -11 -10 -9 -9 ------- Run | Yrd Mat Mat Min Slots Evolved 2 | . . 2 . Power . | . . . . Propulsion . | . . . . Utility 2 | . . 2 . Weapon . | . . . . Parts Attached 17 | 7 2 . 8 Power 2 | 1 . . 1 Engine 2 | 1 . . 1 Core . | . . . . Reactor . | . . . . Propulsion 7 | 2 . . 5 Treads . | . . . . Leg . | . . . . Wheel 5 | 2 . . 3 Hover . | . . . . Flight 2 | . . . 2 Utility 2 | 2 . . . Device 1 | 1 . . . Storage 1 | 1 . . . Processor . | . . . . Hackware . | . . . . Protection . | . . . . Artifact . | . . . . Weapon 6 | 2 2 . 2 Energy Gun 3 | 2 1 . . Energy Cannon 1 | . . . 1 Ballistic Gun . | . . . . Ballistic Cannon . | . . . . Launcher 1 | . 1 . . Special Weapon . | . . . . Impact Weapon . | . . . . Slashing Weapon 1 | . . . 1 Piercing Weapon . | . . . . Special Melee Weapon . | . . . . Unidentified Prototypes . | . . . . Parts Lost 12 | . . . 12 Power 2 | . . . 2 Propulsion 5 | . . . 5 Utility . | . . . . Weapon 5 | . . . 5 Highest Loss Streak 12 | . . . 12 To Critical Strikes . | . . . . Average Backups 4 | 2 6 8 4 Power . | . 1 1 . Propulsion 2 | 1 4 4 2 Utility . | . . . . Weapon 1 | . 1 3 1 Tool/Special . | . . . . Unused Backups 1 | . . . 1 Power . | . . . . Propulsion 1 | . . . 1 Utility . | . . . . Weapon . | . . . . Tool/Special . | . . . . Average Slot Usage (%) 76 | . 100 77 51 Engine 10 | . 14 11 5 Wheel 21 | . 28 22 14 Device 11 | . 14 11 8 Storage 11 | . 14 11 8 Energy Gun 18 | . 27 22 7 Slashing Weapon 1 | . . . 4 Peak Build Rating 7 | 7 7 7 7 Average Rating 5 | 5 7 7 4 On Entrance 5 | . 7 7 7 Naked Turns 24 | . . . 24 Heaviest Build 15 | 15 15 15 15 Greatest Support 26 | 26 26 26 26 Greatest Overweight (x) 4 | 4 . . 3 Average Overweight (x) . | . . . . Largest Inventory Capacity 8 | 8 8 8 8 Average Capacity 7 | 7 8 8 7 Most Carried 8 | 6 8 8 8 Average Carried 4 | 2 6 8 3 Final Capacity 8 | 8 8 8 5 Final Carried 8 | 6 8 8 2 Class Distribution -------------------- 100% | Mutant Dominant Class ---------------- Mutant | -10/Materials Mutant | -9/Materials Mutant | -9/Mines Resources | -11 -10 -9 -9 ----------- Run | Yrd Mat Mat Min Matter Collected 404 | 270 50 . 84 Remotely . | . . . . Salvage Created 430 | 154 136 81 59 Parts 28 | 17 6 5 . Haulers Intercepted 1 | . 1 . . Recyclers Shooed . | . . . . Parts Field Recycled . | . . . . Retrieved Matter . | . . . . Parts Self-Destructed . | . . . . Prevented . | . . . . Kills | -11 -10 -9 -9 ------- Run | Yrd Mat Mat Min Combat Hostiles Destroyed 17 | . 4 2 11 Melee 1 | . . . 1 Guns 2 | . . 1 1 AOE 14 | . 4 1 9 Classes Destroyed 6 | 2 3 . 1 Tunneler 5 | 5 . . . Hauler 1 | . 1 . . Recycler 1 | 1 . . . Watcher 1 | . 1 . . Grunt 6 | . 4 2 . Assembled 11 | . . . 11 Best Kill Streak 11 | 4 5 2 11 Combat Bots Only 11 | . 4 2 11 Max Kills in Single Turn 3 | 1 3 1 3 Gunslinging . | . . . . Exploded 3 | . 2 1 3 Melee 1 | . . . 1 Uniques/NPCs Destroyed . | . . . . Combat | -11 -10 -9 -9 -------- Run | Yrd Mat Mat Min Hostile Shots Fired 114 | . 5 5 104 Missed 27 | . 3 2 22 Hits 87 | . 2 3 82 Projectile 87 | . 2 3 82 AOE 2 | . . . 2 Critical Strikes 5 | . . 1 4 Part Disruptions 2 | . . . 2 Damage Taken 1145 | . 30 42 1073 Core 408 | . . 14 394 Absorbed by Shields . | . . . . Core Remaining (%) 100 | 100 100 . . Volleys Fired 38 | 9 6 5 18 Largest 2 | 2 2 2 2 Hottest 80 | 80 80 80 80 Shots Fired 63 | 18 9 10 26 Gun 54 | 18 6 10 20 Cannon . | . . . . Launcher 9 | . 3 . 6 Special . | . . . . Kinetic . | . . . . Thermal . | . . . . Explosive 9 | . 3 . 6 Electromagnetic 54 | 18 6 10 20 Robot Hit Streak 6 | 2 2 3 6 Robot Miss Streak 3 | 3 1 3 2 Penetration Max . | . . . . Secondary Targets 1 | . . . 1 Max Gunslinging Chain 1 | . . . 1 Shots Hit Robots 26 | 7 2 5 12 Core Hits 48 | 6 13 4 25 Critical Kills . | . . . . Critical Parts Destroyed . | . . . . Critical Strikes 1 | 1 . . . Corrupt 1 | 1 . . . Melee Attacks 3 | . . . 3 Impact . | . . . . Slashing 3 | . . . 3 Piercing . | . . . . Sneak Attacks . | . . . . Combat Hostiles . | . . . . Follow-up Attacks . | . . . . Damage Inflicted 1403 | 177 382 100 744 Guns 323 | 114 48 50 111 Cannons . | . . . . Explosions 1018 | 63 334 50 571 Melee 62 | . . . 62 Ramming . | . . . . Kinetic . | . . . . Thermal 113 | 63 . 50 . Explosive 905 | . 334 . 571 Electromagnetic 323 | 114 48 50 111 Impact . | . . . . Slashing 62 | . . . 62 Piercing . | . . . . Highest Corruption . | . . . . Average Corruption . | . . . . Corruption Purged . | . . . . Corruption Blocked . | . . . . Overload Shots . | . . . . Overflow Damage 21 | 9 2 . 10 Projectiles . | . . . . Explosions 18 | 9 2 . 7 Melee 3 | . . . 3 Knockbacks . | . . . . Impact . | . . . . Kinetic . | . . . . Secondary . | . . . . Self-Inflicted Damage 36 | . . . 36 Shots 1 | . . . 1 Rammed . | . . . . Targets Rammed . | . . . . Kicked . | . . . . Crushed . | . . . . Highest Temperature 128 | 128 36 104 71 Average Temperature 39 | 58 15 56 26 Received Heat Transfer 680 | . 15 45 620 Siege Activations . | . . . . Martial Activations . | . . . . Shielding Activations . | . . . . Robots Disrupted . | . . . . Combat Hostiles . | . . . . Robots Corrupted . | . . . . Combat Hostiles . | . . . . Parts Fried 1 | 1 . . . Impact Corruptions . | . . . . Robots Melted . | . . . . Combat Hostiles . | . . . . Parts Melted . | . . . . Heat Transferred 150 | 50 . 100 . Parts Sabotaged . | . . . . Parts Stolen . | . . . . Parts Stripped . | . . . . Power Chain Reactions 3 | 1 . 2 . Alert | -11 -10 -9 -9 ------- Run | Yrd Mat Mat Min Maximum Alert Level . | . . . . Low Security (%) 100 | 100 100 100 100 Level 1 . | . . . . Level 2 . | . . . . Level 3 . | . . . . Level 4 . | . . . . Level 5 . | . . . . High Security . | . . . . Max Security . | . . . . Peak Influence 107 | 15 107 80 41 Initial 36 | . . 36 27 Average 18 | 3 25 61 9 Influence Increases 239 | 30 124 54 31 Destroy 0b10 Robot/C 120 | . 80 40 . Destroy 0b10 Robot/NC 40 | 30 10 . . Destroy Leader 24 | . 14 10 . Destroy Structure 55 | . 20 4 31 Influence Decreases 239 | 30 37 71 101 Entered New Map 94 | . . 51 43 Time Decay 107 | 30 37 20 20 Lost Part 38 | . . . 38 Squads Dispatched . | . . . . Investigation . | . . . . Extermination . | . . . . Reinforcement . | . . . . Assault . | . . . . Garrison . | . . . . Intercept . | . . . . Searches Triggered . | . . . . Construction Impeded . | . . . . Haulers Reinforced . | . . . . Active Scanning Responses . | . . . . Cargo Convoy Interrupts . | . . . . Stealth | -11 -10 -9 -9 --------- Run | Yrd Mat Mat Min Distress Signals 1 | . . . 1 Communications Jammed . | . . . . Distress Signals . | . . . . Times Spotted 31 | . 5 3 23 Peak Tracking Total 20 | . 4 2 20 Tactical Retreats 2 | . . . 2 Traps | -11 -10 -9 -9 ------- Run | Yrd Mat Mat Min Traps Triggered . | . . . . Indirectly . | . . . . Trap Hack Attempts . | . . . . Triggered . | . . . . Disarmed . | . . . . Reprogrammed . | . . . . Reused . | . . . . Traps Extracted . | . . . . Installed . | . . . . Triggered . | . . . . Machines | -11 -10 -9 -9 ---------- Run | Yrd Mat Mat Min Machines Disabled . | . . . . Max in Single Turn . | . . . . Machines Repaired . | . . . . Machines Dismantled . | . . . . Machines Sabotaged . | . . . . Overloaded Fab Kills . | . . . . Hacking | -11 -10 -9 -9 --------- Run | Yrd Mat Mat Min Machines Accessed 2 | . 2 . . Terminals 1 | . 1 . . Fabricators . | . . . . Repair Stations . | . . . . Recycling Units 1 | . 1 . . Scanalyzers . | . . . . Garrison Access . | . . . . Total Hacks 6 | . 6 . . Successful 3 | . 3 . . Failed 3 | . 3 . . Catastrophic . | . . . . Database Lockouts . | . . . . Manual 4 | . 4 . . Terminals 4 | . 4 . . Fabricators . | . . . . Repair Stations . | . . . . Recycling Units 2 | . 2 . . Scanalyzers . | . . . . Garrison Access . | . . . . Terminal Hacks . | . . . . Fabricator Hacks . | . . . . Repair Station Hacks . | . . . . Recycling Unit Hacks . | . . . . Scanalyzer . | . . . . Garrison Access Hacks . | . . . . Unauthorized Hacks 3 | . 3 . . Terminals 1 | . 1 . . Botnet 1 | . 1 . . Fabricators . | . . . . Repair Stations . | . . . . Recycling Units 2 | . 2 . . Monitor 1 | . 1 . . Reject 1 | . 1 . . Scanalyzers . | . . . . Garrison Access . | . . . . Data Cores Recovered . | . . . . Used . | . . . . Hacking Detections 1 | . 1 . . Full Trace Events . | . . . . Feedback Events . | . . . . Feedback Blocked . | . . . . Robot Schematics Acquired . | . . . . Robots Built . | . . . . Authchips . | . . . . Time . | . . . . Total Robot Build Rating . | . . . . Part Schematics Acquired . | . . . . Parts Built . | . . . . Authchips . | . . . . Time . | . . . . Total Part Build Rating . | . . . . Parts Repaired . | . . . . Time . | . . . . Parts Recycled . | . . . . Recycled Matter . | . . . . Retrieved Matter . | . . . . Retrieved Components . | . . . . Parts Scanalyzed . | . . . . Part Schematics Acquired . | . . . . Parts Damaged . | . . . . Bothacking | -11 -10 -9 -9 ------------ Run | Yrd Mat Mat Min Used RIF Installer . | . . . . Robots Hacked . | . . . . Non-combat . | . . . . Combat . | . . . . Robot Hacks Applied . | . . . . Relay Couplers Released . | . . . . Fabnet Peak Effective % . | . . . . Robots Rewired . | . . . . Allies Hacked . | . . . . Hacks Repelled . | . . . . Allies | -11 -10 -9 -9 -------- Run | Yrd Mat Mat Min Total Allies . | . . . . Largest Group . | . . . . Highest-Rated Group . | . . . . Highest-Rated Ally . | . . . . Total Orders . | . . . . Ally Attacks . | . . . . Total Damage . | . . . . Kills . | . . . . Allies Corrupted . | . . . . Allies Melted . | . . . . Intel | -11 -10 -9 -9 ------- Run | Yrd Mat Mat Min Active Infowar (turns) 393 | 64 163 45 121 Seismic 393 | 64 163 45 121 Robot Analysis Total . | . . . . Derelict Logs Recovered . | . . . . Drone Launches . | . . . . Drone Recoveries . | . . . . Exploration | -11 -10 -9 -9 ------------- Run | Yrd Mat Mat Min Turns Passed 482 | 118 163 45 156 Spaces Moved 360 | 61 146 34 119 Core 54 | 14 . . 40 Treads . | . . . . Legs . | . . . . Wheels 288 | 47 146 34 61 Hover . | . . . . Flight 18 | . . . 18 Fastest Speed 37 | 50 90 90 37 Average Speed 85 | 106 90 90 68 Slowest Speed 250 | 250 90 90 200 Overloaded Moves . | . . . . Propulsion Burnouts . | . . . . Robots Hopped . | . . . . Potential Cave-ins . | . . . . Cave-ins Triggered . | . . . . Exploration Rate (%) 18 | 4 28 11 31 Regions Visited 3 Branch Regions 1 Pre-discovered Areas . | . . . . Known Exits Taken . | . . . . Unknown Exits Taken 3 | 1 1 1 . Scrap Searched 1 | . . . 1 Spaces Dug . | . . . . Terrain Destroyed 81 | 5 28 3 45 Melee . | . . . . Projectile . | . . . . AOE 81 | 5 28 3 45 Terrain Rammed . | . . . . Walls Destroyed . | . . . . Machines Disabled . | . . . . Actions | -11 -10 -9 -9 --------- Run | Yrd Mat Mat Min Total 457 | 93 167 38 159 Wait 27 | 10 12 . 5 Move 357 | 60 145 33 119 Hop . | . . . . Pick Up 10 | 7 2 . 1 Fast Attach 9 | 6 . . 3 Attach 8 | 1 . . 7 Detach . | . . . . Swap 5 | . 2 . 3 Drop . | . . . . Fire 38 | 9 6 5 18 Melee 3 | . . . 3 Ram . | . . . . Kick . | . . . . Crush . | . . . . Escape Stasis . | . . . . Rewire . | . . . . Trap . | . . . . Miscellaneous . | . . . . Route ------- -11/Scrapyard -10/Materials -9/Materials -9/Mines History --------- Turn | Location | Event 23 | -11/Scrapyard | Discovered new exit (range 15) 119 | -11/Scrapyard | Entered Materials 268 | -10/Materials | Discovered new exit (range 13) 282 | -10/Materials | Entered another Materials area 282 | -9/Materials | Evolved 2 slots: Utility x2 303 | -9/Materials | Build established: Mutant 316 | -9/Materials | Discovered new exit (range 13) 327 | -9/Materials | Entered Mines 328 | -9/Mines | Assembled infested the area 333 | -9/Mines | Assisted by a Guerilla fighting off Assembled 337 | -9/Mines | Received a Mining Laser from a helpful Derelict 412 | -9/Mines | Destroyed 11 combat bots 420 | -9/Mines | Core integrity fell below 50% 448 | -9/Mines | Released all parts (3) 451 | -9/Mines | Core integrity fell below 20% 476 | -9/Mines | Lost 12 parts (2p5n5w) 483 | -9/Mines | Destroyed by D-53 Grenadier with Mini Grenade Launcher Last Messages --------------- 00402_ Wheel destroyed. 00404_ The unstable cave ceiling collapses. 00405_ EM Pulse Gun destroyed. 00409_ Acquired 14 matter. 00418_ Com. Wheel destroyed. 00420_ as-67533 destroyed. 00425_ Critical hit (Burn: +80). 00428_ U-05 Engineer lays Concrete. 00429_ U-05 Engineer builds a Wall. 00440_ Acquired Particle Cannon. 00444_ Mining Claw destroyed. 00445_ Wheel destroyed. 00448_ Released Sml. Storage Unit. 00448_ Released Seismic Detector. 00448_ Released Particle Cannon. 00461_ S-10 Pest destroyed. 00472_ Acquired Flight Unit. 00476_ Acquired 3 matter. 00477_ Acquired Flight Unit. 00483_ R-06 Scavenger collects Seismic Detector. Map ----- +----------------------------------------------------+ | ?????????????????????????????????????????????????? | | ?????????????????????????????????????????????????? | | ?????????????????????????????????????????????????? | | ?????????????????????????????????????????????????? | | ?????????????????????????????????????????????????? | | ?????????????????????? ??????????????????????????? | | ????????????????????? ?????????????????????????? | | ????????????????????? ????????????????????????? | | ???????????????????? ???????????????????????? | | ????????????????????? ??###?????????????????? | | ????????????????????# ## ##???###?????????? | | ?????????????????????# #?## ##????????? | | ?????????????????????# ### #????????? | | ???????????????????????????# #????????? | | ???????????????????????????## | #????????? | | ????????????????????????????## #%# #????????? | | ?????????????????????????????#### # ##????????? | | ??????????????????????????##### # ##?????????? | | ?????????####????########## #??????????? | | ????????## ##???# = % % ## #??????????? | | ????????# ##??# ######## # #??????????? | | ????????# #### ###????#### # ##??????????? | | ????????# ] r ##??????### % ##???????????? | | ???????## ##??????## ####????????? | | #??##### % ######## ##???????? | | #### a d @ < ##??????? | | ### ### ##?????? | | #### #?# ##?## ####### ##????? | | #??# #?# % ##??## ##???## ##???? | | #??# ### #??## #????## ##??? | | #### ## #### #?????## % ###? | | # #??????# ## | | # #??????## # | | ### ### ### ##???????###### # | | #?## ##??##### ##??###?????????????##### ## | | ####??#####???????####????????????????????????###? | | ?????????????????????????????????????????????????? | | | | | | | | | | | | | | | | | | | | | | | | | | | +----------------------------------------------------+ Best States ------------- Heat Dissipation 28 Energy Generation 10 Energy Capacity 250 Matter Stores 300 Matter Capacity 300 Sight Range 16 Terrain Scan Density 10 Evasion (%) 62 Item Schematics ----------------- None Robot Schematics ------------------ None Fabricated ------------ Nothing Repaired ---------- Nothing Alien Tech Used ----------------- None Achievements -------------- None Challenges ------------ None Game ------ Seed HypervelocityModifiedTether Manual? 0 Play Time 00:11:18 Cumulative 71.2 hours Start 2025.05.06 @ 22:47:32 End 2025.05.06 @ 23:18:47 Sessions 1 Manual Loads 0 Difficulty Rogue Special Mode None Game No. 60 Rogue 60 Adventurer 0 Explorer 0 Win Type - Total 0 Types 0/0/0/0/0/0/0/0/0/0 Lore% 25 Gallery% 37 Achievement% 40 Wizard Run 0 Options --------- Layout 1 ASCII 0 Keyboard 0 Movement Mouse Keybinds 0 Fullscreen 2 Font 24/X11 Map View 50x35 Zoom Use 0% Tactical HUD 1 Map Filters NONE Filters NONE Steam 1 RUN: 34e16766-c28e-4014-b768-d29cf1e178a1